[Event "27th OIBM 2024"]
[Site "Gmund am Tegernsee"]
[Date "2024.10.26"]
[Round "1.24"]
[White "Womacka, Mathias"]
[Black "Einwiller, Bernd"]
[Result "1-0"]
[ECO "B32"]
[WhiteElo "2345"]
[BlackElo "2076"]
[Annotator "RC"]
[PlyCount "101"]
[EventDate "2024.09.16"]
[EventType "swiss"]
[EventCountry "GER"]
[SourceTitle "playchess.com"]
[Source "ChessBase"]
[SourceQuality "1"]
[TimeControl "40/5400+30:1800+30"]

1. e4 {[%emt 0:00:03]} c5 {[%emt 0:00:12]} 2. Nf3 {[%emt 0:00:09]} Nc6 {[%emt 0:00:11]} 3. d4 {[%emt 0:00:13]} cxd4 {[%emt 0:00:10]} 4. Nxd4 {[%emt 0:00:05]} e5 {[%emt 0:00:14]} 5. Nb5 {[%emt 0:00:25]} d6 {[%emt 0:00:12]} 6. N1c3 {[%emt 0:00:29]} a6 {[%emt 0:00:22]} 7. Na3 {[%emt 0:00:05]} Be7 {[%emt 0:00:17]} 8. Nc4 {[%emt 0:01:15]} Nf6 {[%emt 0:00:57]} 9. Be3 {[%emt 0:18:38]} b5 {[%emt 0:07:27]} 10. Nb6 {[%emt 0:01:42]} Rb8 {[%emt 0:00:12]} 11. Nxc8 {[%emt 0:01:25]} Rxc8 {[%emt 0:01:00]} 12. a4 {[%emt 0:05:04]} b4 {[%emt 0:03:14]} 13. Nd5 {[%emt 0:02:13]} Nxd5 {[%emt 0:15:52]} 14. Qxd5 {[%emt 0:02:55]} Nb8 {[%emt 0:17:03]} 15. Bc4 {[%emt 0:05:06]} O-O {[%emt 0:00:27]} 16. a5 {[%emt 0:00:12]} Qc7 {[%emt 0:03:23]} 17. b3 {[%emt 0:02:27]} Qc6 {[%emt 0:11:07]} 18. O-O {[%emt 0:10:52]} Qxd5 {[%emt 0:03:51]} 19. exd5 {[%emt 0:02:14]} Bf6 {[%emt 0:07:32]} 20. Ra4 {[%emt 0:07:34]} e4 {[%emt 0:02:35]} 21. Rxb4 {[%emt 0:00:05]} Be5 {[%emt 0:01:06]} 22. Rb7 {[%emt 0:13:56]} f5 {[%emt 0:01:16]} 23. g3 {[%emt 0:00:21]} h6 {[%emt 0:03:02]} 24. f3 {[%emt 0:03:07]} g5 {[%emt 0:02:20]} 25. fxe4 {[%emt 0:03:21]} f4 {[%emt 0:01:04]} 26. gxf4 {[%emt 0:00:23]} gxf4 {[%emt 0:00:11]} 27. Ba7 {[%emt 0:05:24]} Bc3 {[%emt 0:03:30]} 28. Rxb8 {[%emt 0:08:49]} Rxb8 {[%emt 0:00:16]} 29. Bxb8 {[%emt 0:00:03]} Rxb8 {[%emt 0:00:13]} 30. Rxf4 {[%emt 0:00:04]} Kg7 {[%emt 0:04:59]} 31. Rf3 {[%emt 0:03:17]} Bxa5 {[%emt 0:00:37]} 32. Bxa6 {[%emt 0:00:21]} Ra8 {[%emt 0:01:11]} 33. Bb5 {[%emt 0:00:50]} Bb6+ {[%emt 0:00:45]} 34. Kg2 {[%emt 0:00:14]} Bd4 {[%emt 0:01:31]} 35. Ba4 {[%emt 0:01:26]} Rc8 {[%emt 0:00:39]} 36. Bc6 {[%emt 0:00:06]} Rc7 {[%emt 0:03:27]} 37. c3 {[%emt 0:00:19]} Bb6 {[%emt 0:01:17]} 38. Rf5 {[%emt 0:03:13]} Rf7 {[%emt 0:03:43]} 39. Rxf7+ {[%emt 0:00:40]} Kxf7 {[%emt 0:00:01]} 40. e5 {[%emt 0:00:41]} dxe5 {[%emt 0:01:03]} 41. Kf3 {[%emt 0:01:04]} Ke7 {[%emt 0:01:14]} 42. Ke4 {[%emt 0:00:11]} Kd6 {[%emt 0:01:20]} 43. b4 {[%emt 0:01:21]} Bf2 {[%emt 0:00:39]} 44. c4 {[%emt 0:02:04]} Be1 {[%emt 0:00:27]} 45. c5+ {[%emt 0:00:05]} Kc7 {[%emt 0:00:21]} 46. b5 {[%emt 0:00:21]} Bf2 {[%emt 0:02:15]} 47. d6+ {[%emt 0:00:12]} Kd8 {[%emt 0:00:27]} 48. Kd5 {[%emt 0:00:11]} e4 {[%emt 0:01:10]} 49. b6 {[%emt 0:00:05]} Kc8 {[%emt 0:00:40]} 50. d7+ {[%emt 0:01:22]} Kd8 {[%emt 0:00:35]} 51. b7 {[%emt 0:00:10]} 1-0

[Event "27th OIBM 2024"]
[Site "Gmund am Tegernsee"]
[Date "2024.10.26"]
[Round "1.25"]
[White "Scheckenbach, Franz"]
[Black "Dolzhykova, Kateryna"]
[Result "0-1"]
[ECO "C02"]
[WhiteElo "2076"]
[BlackElo "2345"]
[Annotator "RC"]
[PlyCount "76"]
[EventDate "2024.09.16"]
[EventType "swiss"]
[EventCountry "GER"]
[SourceTitle "playchess.com"]
[Source "ChessBase"]
[SourceQuality "1"]
[TimeControl "40/5400+30:1800+30"]

1. e4 {[%emt 0:00:06]} e6 {[%emt 0:00:16]} 2. d4 {[%emt 0:00:20]} d5 {[%emt 0:00:06]} 3. e5 {[%emt 0:00:09]} c5 {[%emt 0:00:07]} 4. c3 {[%emt 0:00:06]} Nc6 {[%emt 0:00:05]} 5. Nf3 {[%emt 0:00:10]} Nh6 {[%emt 0:00:12]} 6. Bd3 {[%emt 0:01:59]} Nf5 {[%emt 0:00:40]} 7. O-O {[%emt 0:01:28]} h6 {[%emt 0:02:54]} 8. Be3 {[%emt 0:09:29]} cxd4 {[%emt 0:07:32]} 9. cxd4 {[%emt 0:06:30]} g5 {[%emt 0:01:47]} 10. g4 {[%emt 0:07:42]} Nxe3 {[%emt 0:11:15]} 11. fxe3 {[%emt 0:00:09]} Bd7 {[%emt 0:01:32]} 12. Nc3 {[%emt 0:01:36]} Qb6 {[%emt 0:00:20]} 13. a3 {[%emt 0:01:17]} Be7 {[%emt 0:08:19]} 14. b4 {[%emt 0:01:44]} h5 {[%emt 0:01:28]} 15. h3 {[%emt 0:00:20]} hxg4 {[%emt 0:02:44]} 16. hxg4 {[%emt 0:00:14]} a6 {[%emt 0:00:40]} 17. Qe2 {[%emt 0:04:18]} Na7 {[%emt 0:03:56]} 18. Kg2 {[%emt 0:14:15]} O-O-O {[%emt 0:04:47]} 19. Qc2 {[%emt 0:05:22]} Kb8 {[%emt 0:00:33]} 20. Na4 {[%emt 0:00:49]} Bxa4 {[%emt 0:04:39]} 21. Qxa4 {[%emt 0:00:05]} f5 {[%emt 0:00:20]} 22. exf6 {[%emt 0:16:06]} Bxf6 {[%emt 0:00:22]} 23. Rh1 {[%emt 0:03:55]} Qd6 {[%emt 0:07:03]} 24. Qc2 {[%emt 0:05:00]} e5 {[%emt 0:02:17]} 25. dxe5 {[%emt 0:01:00]} Bxe5 {[%emt 0:00:09]} 26. Rad1 {[%emt 0:00:31]} Rxh1 {[%emt 0:03:30]} 27. Rxh1 {[%emt 0:00:26]} d4 {[%emt 0:00:01]} 28. exd4 {[%emt 0:01:53]} Bxd4 {[%emt 0:00:17]} 29. Bf5 {[%emt 0:01:59]} Bb6 {[%emt 0:02:52]} 30. Qb2 {[%emt 0:02:30]} Nb5 {[%emt 0:02:11]} 31. Rh3 {[%emt 0:04:13]} Qd1 {[%emt 0:03:46]} 32. Rh1 {[%emt 0:01:38]} Qd5 {[%emt 0:00:21]} 33. Rh8 {[%emt 0:05:04]} Rxh8 {[%emt 0:00:59]} 34. Qxh8+ {[%emt 0:00:04]} Ka7 {[%emt 0:00:01]} 35. Qe8 {[%emt 0:02:27]} Qa2+ {[%emt 0:01:18]} 36. Kh1 {[%emt 0:01:34]} Qf2 {[%emt 0:00:26]} 37. Be4 {[%emt 0:00:50]} Qf1+ {[%emt 0:00:08]} 38. Kh2 {[%emt 0:00:12]} Bc7+ {[%emt 0:00:08]} 0-1

[Event "27th OIBM 2024"]
[Site "Gmund am Tegernsee"]
[Date "2024.10.26"]
[Round "1.26"]
[White "Becker, Matthias"]
[Black "Kick, Joachim"]
[Result "1-0"]
[ECO "C26"]
[WhiteElo "2338"]
[BlackElo "2073"]
[Annotator "RC"]
[PlyCount "47"]
[EventDate "2024.09.16"]
[EventType "swiss"]
[EventCountry "GER"]
[SourceTitle "playchess.com"]
[Source "ChessBase"]
[SourceQuality "1"]
[TimeControl "40/5400+30:1800+30"]

1. e4 {[%emt 0:00:09]} e5 {[%emt 0:00:08]} 2. Nc3 {[%emt 0:00:22]} Nf6 {[%emt 0:00:12]} 3. d4 {[%emt 0:00:15]} exd4 {[%emt 0:00:25]} 4. Qxd4 {[%emt 0:00:22]} Nc6 {[%emt 0:00:21]} 5. Qd3 {[%emt 0:00:12]} Bb4 {[%emt 0:20:20]} 6. Bd2 {[%emt 0:01:34]} O-O {[%emt 0:01:05]} 7. O-O-O {[%emt 0:00:26]} Re8 {[%emt 0:03:01]} 8. Nge2 {[%emt 0:02:46]} d6 {[%emt 0:03:39]} 9. Bg5 {[%emt 0:02:19]} h6 {[%emt 0:10:06]} 10. Bxf6 {[%emt 0:03:50]} Qxf6 {[%emt 0:01:58]} 11. Nd5 {[%emt 0:00:10]} Qd8 {[%emt 0:01:57]} 12. Nxb4 {[%emt 0:00:15]} Nxb4 {[%emt 0:00:18]} 13. Qd2 {[%emt 0:00:16]} a5 {[%emt 0:26:53]} 14. a3 {[%emt 0:00:27]} Nc6 {[%emt 0:00:56]} 15. Nc3 {[%emt 0:04:39]} Be6 {[%emt 0:02:52]} 16. f4 {[%emt 0:02:00]} f5 {[%emt 0:02:19]} 17. exf5 {[%emt 0:09:18]} Bxf5 {[%emt 0:00:10]} 18. Rg1 {[%emt 0:01:44]} Qd7 {[%emt 0:01:51]} 19. Bb5 {[%emt 0:05:09]} Kh8 {[%emt 0:03:47]} 20. h3 {[%emt 0:02:59]} Rad8 {[%emt 0:03:36]} 21. g4 {[%emt 0:01:35]} Be4 {[%emt 0:00:20]} 22. g5 {[%emt 0:15:00]} Bf5 {[%emt 0:02:59]} 23. gxh6 {[%emt 0:00:55]} gxh6 {[%emt 0:00:06]} 24. Nd5 {[%emt 0:00:54]} 1-0

[Event "27th OIBM 2024"]
[Site "Gmund am Tegernsee"]
[Date "2024.10.26"]
[Round "1.27"]
[White "Freundorfer, Josef"]
[Black "Weber, Ulrich"]
[Result "0-1"]
[ECO "B21"]
[WhiteElo "2072"]
[BlackElo "2334"]
[Annotator "RC"]
[PlyCount "112"]
[EventDate "2024.09.16"]
[EventType "swiss"]
[EventCountry "GER"]
[SourceTitle "playchess.com"]
[Source "ChessBase"]
[SourceQuality "1"]
[TimeControl "40/5400+30:1800+30"]

1. e4 {[%emt 0:00:09]} c5 {[%emt 0:00:01]} 2. d4 {[%emt 0:00:18]} cxd4 {[%emt 0:00:01]} 3. c3 {[%emt 0:00:13]} dxc3 {[%emt 0:00:01]} 4. Nxc3 {[%emt 0:00:11]} e6 {[%emt 0:00:01]} 5. Nf3 {[%emt 0:00:14]} a6 {[%emt 0:00:05]} 6. Bc4 {[%emt 0:00:11]} Nc6 {[%emt 0:00:04]} 7. O-O {[%emt 0:00:16]} Nge7 {[%emt 0:00:04]} 8. Qe2 {[%emt 0:00:50]} Ng6 {[%emt 0:03:19]} 9. e5 {[%emt 0:06:34]} Be7 {[%emt 0:02:35]} 10. Bd2 {[%emt 0:02:24]} O-O {[%emt 0:03:35]} 11. Rfe1 {[%emt 0:02:22]} b5 {[%emt 0:21:45]} 12. Bb3 {[%emt 0:06:47]} Bb7 {[%emt 0:01:18]} 13. Rad1 {[%emt 0:03:47]} Rc8 {[%emt 0:08:26]} 14. Bc1 {[%emt 0:03:37]} Na5 {[%emt 0:10:50]} 15. Bc2 {[%emt 0:07:37]} Nc4 {[%emt 0:10:09]} 16. Be4 {[%emt 0:05:31]} Bxe4 {[%emt 0:06:06]} 17. Qxe4 {[%emt 0:04:15]} Qc7 {[%emt 0:02:15]} 18. h4 {[%emt 0:05:40]} b4 {[%emt 0:07:55]} 19. Na4 {[%emt 0:09:39]} d5 {[%emt 0:04:56]} 20. exd6 {[%emt 0:04:03]} Nxd6 {[%emt 0:00:06]} 21. Qd4 {[%emt 0:07:53]} Nf5 {[%emt 0:00:39]} 22. Qb6 {[%emt 0:03:32]} Nfxh4 {[%emt 0:02:24]} 23. Nxh4 {[%emt 0:00:19]} Nxh4 {[%emt 0:00:09]} 24. Qxc7 {[%emt 0:00:56]} Rxc7 {[%emt 0:00:04]} 25. Bf4 {[%emt 0:02:11]} Rc6 {[%emt 0:00:20]} 26. Rd7 {[%emt 0:00:55]} Ng6 {[%emt 0:03:15]} 27. Bg3 {[%emt 0:02:14]} h5 {[%emt 0:01:08]} 28. Red1 {[%emt 0:01:00]} Rfc8 {[%emt 0:01:50]} 29. Ra7 {[%emt 0:04:21]} h4 {[%emt 0:00:24]} 30. Bh2 {[%emt 0:01:45]} Rc1 {[%emt 0:02:54]} 31. Rad7 {[%emt 0:00:43]} R8c2 {[%emt 0:00:54]} 32. Kf1 {[%emt 0:02:11]} Rxd1+ {[%emt 0:01:43]} 33. Rxd1 {[%emt 0:00:11]} Bg5 {[%emt 0:01:00]} 34. Rd6 {[%emt 0:02:40]} Bf4 {[%emt 0:01:55]} 35. Rd8+ {[%emt 0:00:47]} Kh7 {[%emt 0:00:02]} 36. g3 {[%emt 0:00:31]} Bg5 {[%emt 0:02:57]} 37. Rd4 {[%emt 0:01:23]} h3 {[%emt 0:00:16]} 38. g4 {[%emt 0:03:03]} e5 {[%emt 0:01:51]} 39. Rd3 {[%emt 0:00:15]} Rc1+ {[%emt 0:00:57]} 40. Ke2 {[%emt 0:00:08]} Rc2+ {[%emt 0:00:53]} 41. Kf1 {[%emt 0:30:29]} Rc1+ {[%emt 0:13:25]} 42. Ke2 {[%emt 0:00:00]} Ra1 {[%emt 0:00:09]} 43. Rxh3+ {[%emt 0:00:00]} Kg8 {[%emt 0:00:04]} 44. Rb3 {[%emt 0:00:00]} Be7 {[%emt 0:00:27]} 45. Nb6 {[%emt 0:00:00]} Rxa2 {[%emt 0:01:54]} 46. Nd5 {[%emt 0:00:00]} a5 {[%emt 0:00:36]} 47. Nxe7+ {[%emt 0:00:00]} Nxe7 {[%emt 0:00:16]} 48. Kd1 {[%emt 0:00:00]} Nc6 {[%emt 0:00:11]} 49. Kc1 {[%emt 0:00:00]} Ra1+ {[%emt 0:00:34]} 50. Kd2 {[%emt 0:00:00]} Nd4 {[%emt 0:02:30]} 51. Rd3 {[%emt 0:00:00]} f6 {[%emt 0:00:41]} 52. f4 {[%emt 0:00:00]} Rb1 {[%emt 0:00:49]} 53. fxe5 {[%emt 0:00:00]} Rxb2+ {[%emt 0:00:18]} 54. Ke3 {[%emt 0:00:00]} Nc6 {[%emt 0:03:06]} 55. e6 {[%emt 0:00:00]} Rxh2 {[%emt 0:00:07]} 56. Rd6 {[%emt 0:00:00]} Rc2 {[%emt 0:00:17]} 0-1

[Event "27th OIBM 2024"]
[Site "Gmund am Tegernsee"]
[Date "2024.10.26"]
[Round "1.28"]
[White "Zude, Arno"]
[Black "Unterweger, Jonas"]
[Result "1-0"]
[ECO "C54"]
[WhiteElo "2332"]
[BlackElo "2072"]
[Annotator "RC"]
[PlyCount "53"]
[EventDate "2024.09.16"]
[EventType "swiss"]
[EventCountry "GER"]
[SourceTitle "playchess.com"]
[Source "ChessBase"]
[SourceQuality "1"]
[TimeControl "40/5400+30:1800+30"]

1. e4 {[%emt 0:00:04]} e5 {[%emt 0:00:05]} 2. Nf3 {[%emt 0:00:11]} Nc6 {[%emt 0:00:06]} 3. Bc4 {[%emt 0:00:10]} Bc5 {[%emt 0:00:45]} 4. c3 {[%emt 0:00:13]} Nf6 {[%emt 0:00:11]} 5. d3 {[%emt 0:00:08]} O-O {[%emt 0:00:26]} 6. O-O {[%emt 0:00:15]} d5 {[%emt 0:01:08]} 7. exd5 {[%emt 0:00:23]} Nxd5 {[%emt 0:00:12]} 8. Re1 {[%emt 0:01:07]} Bg4 {[%emt 0:01:39]} 9. Nbd2 {[%emt 0:01:02]} Nb6 {[%emt 0:04:22]} 10. h3 {[%emt 0:01:51]} Bxf3 {[%emt 0:05:38]} 11. Qxf3 {[%emt 0:00:45]} a5 {[%emt 0:06:28]} 12. Bb3 {[%emt 0:10:29]} a4 {[%emt 0:02:18]} 13. Bc2 {[%emt 0:00:13]} f6 {[%emt 0:02:54]} 14. b4 {[%emt 0:25:19]} axb3 {[%emt 0:02:58]} 15. Nxb3 {[%emt 0:00:37]} Ba3 {[%emt 0:03:29]} 16. d4 {[%emt 0:03:55]} Bxc1 {[%emt 0:05:53]} 17. Raxc1 {[%emt 0:02:28]} exd4 {[%emt 0:14:07]} 18. cxd4 {[%emt 0:03:16]} Nxd4 {[%emt 0:09:48]} 19. Nxd4 {[%emt 0:01:15]} Qxd4 {[%emt 0:00:14]} 20. Bb3+ {[%emt 0:01:16]} Kh8 {[%emt 0:00:59]} 21. Rxc7 {[%emt 0:00:47]} Qd6 {[%emt 0:03:27]} 22. Rxb7 {[%emt 0:07:55]} Rfe8 {[%emt 0:04:23]} 23. Rxe8+ {[%emt 0:10:07]} Rxe8 {[%emt 0:00:05]} 24. Qg3 {[%emt 0:00:28]} Qxg3 {[%emt 0:02:57]} 25. fxg3 {[%emt 0:00:02]} Nc8 {[%emt 0:00:44]} 26. Rb8 {[%emt 0:00:58]} g6 {[%emt 0:01:10]} 27. Bf7 {[%emt 0:00:38]} 1-0

[Event "27th OIBM 2024"]
[Site "Gmund am Tegernsee"]
[Date "2024.10.26"]
[Round "1.29"]
[White "Preissler, Niklas"]
[Black "Timagin, Petr"]
[Result "1/2-1/2"]
[ECO "A47"]
[WhiteElo "2071"]
[BlackElo "2329"]
[Annotator "RC"]
[PlyCount "210"]
[EventDate "2024.09.16"]
[EventType "swiss"]
[EventCountry "GER"]
[SourceTitle "playchess.com"]
[Source "ChessBase"]
[SourceQuality "1"]
[TimeControl "40/5400+30:1800+30"]

1. d4 {[%emt 0:00:07]} Nf6 {[%emt 0:00:16]} 2. Bf4 {[%emt 0:00:12]} e6 {[%emt 0:00:26]} 3. Nf3 {[%emt 0:00:31]} b6 {[%emt 0:00:39]} 4. e3 {[%emt 0:00:33]} Bb7 {[%emt 0:00:07]} 5. h3 {[%emt 0:00:50]} Bd6 {[%emt 0:00:42]} 6. Bxd6 {[%emt 0:06:16]} cxd6 {[%emt 0:00:07]} 7. Bd3 {[%emt 0:07:47]} O-O {[%emt 0:02:19]} 8. O-O {[%emt 0:00:23]} d5 {[%emt 0:03:55]} 9. Nbd2 {[%emt 0:04:03]} d6 {[%emt 0:01:08]} 10. c4 {[%emt 0:02:51]} Nbd7 {[%emt 0:06:30]} 11. Rc1 {[%emt 0:12:17]} e5 {[%emt 0:17:20]} 12. cxd5 {[%emt 0:03:33]} Nxd5 {[%emt 0:01:03]} 13. Nc4 {[%emt 0:22:23]} Qe7 {[%emt 0:08:51]} 14. dxe5 {[%emt 0:03:03]} dxe5 {[%emt 0:11:07]} 15. Be2 {[%emt 0:07:01]} f6 {[%emt 0:13:45]} 16. a3 {[%emt 0:11:58]} Nc5 {[%emt 0:09:37]} 17. b4 {[%emt 0:02:08]} Ne6 {[%emt 0:01:38]} 18. Qb3 {[%emt 0:01:39]} e4 {[%emt 0:01:14]} 19. Nfd2 {[%emt 0:01:40]} Ng5 {[%emt 0:01:25]} 20. Rfd1 {[%emt 0:01:03]} Kh8 {[%emt 0:02:20]} 21. Qb2 {[%emt 0:01:38]} Rae8 {[%emt 0:02:20]} 22. Nb1 {[%emt 0:01:15]} f5 {[%emt 0:03:41]} 23. Nc3 {[%emt 0:00:10]} Nxc3 {[%emt 0:01:25]} 24. Qxc3 {[%emt 0:00:21]} f4 {[%emt 0:02:07]} 25. exf4 {[%emt 0:01:41]} Rxf4 {[%emt 0:00:35]} 26. Nd6 {[%emt 0:05:01]} Ref8 {[%emt 0:00:31]} 27. Qc7 {[%emt 0:01:41]} Qxc7 {[%emt 0:07:30]} 28. Rxc7 {[%emt 0:00:00]} Rxf2 {[%emt 0:00:27]} 29. Bc4 {[%emt 0:01:40]} Ba8 {[%emt 0:01:04]} 30. Nf7+ {[%emt 0:01:09]} Nxf7 {[%emt 0:00:46]} 31. Rxf7 {[%emt 0:00:02]} R2xf7 {[%emt 0:00:33]} 32. Bxf7 {[%emt 0:00:06]} e3 {[%emt 0:00:30]} 33. Rd7 {[%emt 0:00:51]} Bc6 {[%emt 0:00:21]} 34. Re7 {[%emt 0:00:27]} Bb5 {[%emt 0:00:31]} 35. a4 {[%emt 0:01:04]} Bxa4 {[%emt 0:00:23]} 36. Bh5 {[%emt 0:00:32]} g6 {[%emt 0:00:31]} 37. Be2 {[%emt 0:00:27]} a5 {[%emt 0:00:40]} 38. bxa5 {[%emt 0:00:22]} bxa5 {[%emt 0:00:04]} 39. Rxe3 {[%emt 0:00:29]} Re8 {[%emt 0:00:17]} 40. Ra3 {[%emt 0:00:30]} Rxe2 {[%emt 0:00:47]} 41. Rxa4 {[%emt 0:30:11]} Re5 {[%emt 0:30:05]} 42. Kf2 {[%emt 0:00:00]} Kg7 {[%emt 0:00:00]} 43. Rc4 {[%emt 0:00:00]} Re7 {[%emt 0:00:00]} 44. Ra4 {[%emt 0:00:00]} Ra7 {[%emt 0:00:00]} 45. Ke3 {[%emt 0:00:00]} Kf6 {[%emt 0:00:00]} 46. Kd4 {[%emt 0:00:00]} h5 {[%emt 0:00:00]} 47. g3 {[%emt 0:00:00]} Ra8 {[%emt 0:00:00]} 48. Kd5 {[%emt 0:00:00]} Rd8+ {[%emt 0:00:00]} 49. Ke4 {[%emt 0:00:00]} Re8+ {[%emt 0:00:00]} 50. Kd4 {[%emt 0:00:00]} Re5 {[%emt 0:00:00]} 51. Ra3 {[%emt 0:00:00]} Ke6 {[%emt 0:00:00]} 52. Ra2 {[%emt 0:00:00]} Kd6 {[%emt 0:00:00]} 53. Ra3 {[%emt 0:00:23]} Rg5 {[%emt 0:02:27]} 54. Rf3 {[%emt 0:03:08]} Rd5+ {[%emt 0:01:42]} 55. Kc4 {[%emt 0:00:38]} Rc5+ {[%emt 0:00:13]} 56. Kd4 {[%emt 0:00:16]} Rc6 {[%emt 0:00:47]} 57. Ra3 {[%emt 0:00:58]} Ra6 {[%emt 0:00:15]} 58. Ra4 {[%emt 0:00:29]} Ra8 {[%emt 0:00:38]} 59. h4 {[%emt 0:01:19]} Ra7 {[%emt 0:00:30]} 60. Kc4 {[%emt 0:01:16]} Kc6 {[%emt 0:00:17]} 61. Kb3 {[%emt 0:00:53]} Kd5 {[%emt 0:03:07]} 62. Kc3 {[%emt 0:00:26]} Ra6 {[%emt 0:01:16]} 63. Kd3 {[%emt 0:00:23]} Kc5 {[%emt 0:00:17]} 64. Kc3 {[%emt 0:01:00]} Kb5 {[%emt 0:00:25]} 65. Re4 {[%emt 0:00:36]} a4 {[%emt 0:00:55]} 66. Re5+ {[%emt 0:00:27]} Kc6 {[%emt 0:00:24]} 67. Re6+ {[%emt 0:00:01]} Kb7 {[%emt 0:00:09]} 68. Re7+ {[%emt 0:00:04]} Kc8 {[%emt 0:00:16]} 69. Kb2 {[%emt 0:02:01]} a3+ {[%emt 0:00:10]} 70. Ka2 {[%emt 0:00:05]} Kd8 {[%emt 0:00:34]} 71. Re4 {[%emt 0:00:44]} Kd7 {[%emt 0:01:11]} 72. g4 {[%emt 0:00:10]} hxg4 {[%emt 0:00:41]} 73. Rxg4 {[%emt 0:00:01]} Ke7 {[%emt 0:00:05]} 74. Rg5 {[%emt 0:01:36]} Kf6 {[%emt 0:00:11]} 75. Rg4 {[%emt 0:00:32]} Ra5 {[%emt 0:00:07]} 76. Rb4 {[%emt 0:00:18]} Kg7 {[%emt 0:01:11]} 77. Rb7+ {[%emt 0:00:32]} Kh6 {[%emt 0:00:07]} 78. Rb4 {[%emt 0:00:21]} Kh5 {[%emt 0:00:21]} 79. Rd4 {[%emt 0:00:30]} Rf5 {[%emt 0:01:02]} 80. Kxa3 {[%emt 0:00:05]} Rf3+ {[%emt 0:00:10]} 81. Kb2 {[%emt 0:00:13]} Rh3 {[%emt 0:00:07]} 82. Kc2 {[%emt 0:00:23]} Rxh4 {[%emt 0:00:07]} 83. Rd5+ {[%emt 0:00:17]} Kg4 {[%emt 0:01:58]} 84. Rd4+ {[%emt 0:00:50]} Kg3 {[%emt 0:00:15]} 85. Rd3+ {[%emt 0:00:03]} Kf4 {[%emt 0:00:43]} 86. Rd4+ {[%emt 0:00:02]} Kg5 {[%emt 0:00:03]} 87. Rd5+ {[%emt 0:00:10]} Kh6 {[%emt 0:00:57]} 88. Kd3 {[%emt 0:00:17]} Rf4 {[%emt 0:00:02]} 89. Ke3 {[%emt 0:02:47]} g5 {[%emt 0:00:05]} 90. Rd1 {[%emt 0:00:41]} Kg6 {[%emt 0:00:29]} 91. Rd2 {[%emt 0:00:30]} Rf8 {[%emt 0:00:38]} 92. Rf2 {[%emt 0:00:22]} Ra8 {[%emt 0:01:09]} 93. Kf3 {[%emt 0:00:13]} Ra3+ {[%emt 0:00:05]} 94. Kg4 {[%emt 0:00:27]} Rb3 {[%emt 0:00:14]} 95. Ra2 {[%emt 0:00:24]} Rb4+ {[%emt 0:00:05]} 96. Kg3 {[%emt 0:00:04]} Kh5 {[%emt 0:00:19]} 97. Rh2+ {[%emt 0:00:08]} Rh4 {[%emt 0:00:05]} 98. Rxh4+ {[%emt 0:00:23]} gxh4+ {[%emt 0:00:03]} 99. Kh3 {[%emt 0:00:06]} Kg5 {[%emt 0:00:01]} 100. Kh2 {[%emt 0:00:07]} Kg4 {[%emt 0:00:02]} 101. Kg2 {[%emt 0:00:09]} h3+ {[%emt 0:00:03]} 102. Kh2 {[%emt 0:00:05]} Kh4 {[%emt 0:00:02]} 103. Kh1 {[%emt 0:00:07]} Kg3 {[%emt 0:00:03]} 104. Kg1 {[%emt 0:00:05]} h2+ {[%emt 0:00:02]} 105. Kh1 {[%emt 0:00:04]} Kh3 {[%emt 0:00:04]} 1/2-1/2

[Event "27th OIBM 2024"]
[Site "Gmund am Tegernsee"]
[Date "2024.10.26"]
[Round "1.30"]
[White "Stopa, Jacek"]
[Black "Schmidt, Gerhard"]
[Result "1-0"]
[ECO "A65"]
[WhiteElo "2326"]
[BlackElo "2087"]
[Annotator "RC"]
[PlyCount "63"]
[EventDate "2024.09.16"]
[EventType "swiss"]
[EventCountry "GER"]
[SourceTitle "playchess.com"]
[Source "ChessBase"]
[SourceQuality "1"]
[TimeControl "40/5400+30:1800+30"]

1. d4 {[%emt 0:00:03]} Nf6 {[%emt 0:00:10]} 2. c4 {[%emt 0:00:16]} g6 {[%emt 0:00:12]} 3. f3 {[%emt 0:00:08]} c5 {[%emt 0:00:30]} 4. d5 {[%emt 0:00:12]} d6 {[%emt 0:00:23]} 5. e4 {[%emt 0:00:41]} e6 {[%emt 0:00:41]} 6. Nc3 {[%emt 0:00:21]} exd5 {[%emt 0:00:58]} 7. cxd5 {[%emt 0:00:07]} Bg7 {[%emt 0:00:40]} 8. Nge2 {[%emt 0:00:41]} O-O {[%emt 0:00:49]} 9. Ng3 {[%emt 0:00:05]} a6 {[%emt 0:00:59]} 10. a4 {[%emt 0:00:08]} Nbd7 {[%emt 0:01:43]} 11. Be2 {[%emt 0:00:43]} Ne8 {[%emt 0:06:34]} 12. Be3 {[%emt 0:04:07]} Rb8 {[%emt 0:02:38]} 13. Qd2 {[%emt 0:01:42]} Nc7 {[%emt 0:03:04]} 14. Bg5 {[%emt 0:02:58]} Bf6 {[%emt 0:13:53]} 15. h4 {[%emt 0:02:43]} b5 {[%emt 0:03:59]} 16. f4 {[%emt 0:05:49]} c4 {[%emt 0:13:39]} 17. axb5 {[%emt 0:00:45]} axb5 {[%emt 0:02:13]} 18. e5 {[%emt 0:13:44]} dxe5 {[%emt 0:10:09]} 19. fxe5 {[%emt 0:00:31]} Bxg5 {[%emt 0:15:34]} 20. hxg5 {[%emt 0:00:06]} Nxe5 {[%emt 0:01:11]} 21. Nge4 {[%emt 0:09:26]} Ne8 {[%emt 0:08:41]} 22. Qf4 {[%emt 0:16:20]} f6 {[%emt 0:08:18]} 23. gxf6 {[%emt 0:01:19]} Nd7 {[%emt 0:00:22]} 24. Qh2 {[%emt 0:06:11]} Rf7 {[%emt 0:01:57]} 25. Ng5 {[%emt 0:00:37]} Nexf6 {[%emt 0:01:36]} 26. Nxf7 {[%emt 0:00:14]} Kxf7 {[%emt 0:00:17]} 27. Bg4 {[%emt 0:03:09]} Nxg4 {[%emt 0:01:56]} 28. Qxh7+ {[%emt 0:00:06]} Kf6 {[%emt 0:00:13]} 29. Qh4+ {[%emt 0:03:46]} g5 {[%emt 0:00:11]} 30. Ne4+ {[%emt 0:05:26]} Ke5 {[%emt 0:00:23]} 31. Nxg5 {[%emt 0:05:11]} Ndf6 {[%emt 0:00:20]} 32. Nf7+ {[%emt 0:18:55]} 1-0